fUST/lending_fUST_20250414
["ID","MTS","AMOUNT","RATE_DAILY","PERIOD"]
[357923173,1744566645802,-151.0,0.0002889,7]
[357923174,1744566645811,-13114.97276114,0.0002898,4]
[357923175,1744566645823,-4507.02723886,0.0002898,4]
[357923176,1744566645847,-634.01038839,0.0002898,4]
[357923177,1744566645860,-8468.134,0.0002898,4]
[357923178,1744566645871,-1857.75375058,0.0002898,4]
[357923179,1744566645902,-508.75,0.0002898,4]
[357923215,1744567837934,-500.0,0.00025546,2]
[357923216,1744567837944,-500.0,0.00025546,2]
[357923217,1744567837954,-500.0,0.00025546,2]
[357923218,1744567837965,-500.0,0.00025546,2]
[357923219,1744567837975,-500.0,0.00025546,2]
[357923220,1744567837985,-267.38334181,0.00025546,2]
[357923221,1744567837997,-232.61665819,0.00025546,2]
[357923222,1744567838006,-500.0,0.00025546,2]
[357923223,1744567838015,-500.0,0.00025546,2]
[357923224,1744567838025,-500.0,0.00025546,2]
[357923225,1744567838035,-380.11106845,0.00025546,2]
[357923226,1744567838044,-500.0,0.00025546,2]
[357923227,1744567838054,-500.0,0.00025546,2]
[357923228,1744567838063,-500.0,0.00025546,2]
[357923229,1744567838073,-500.0,0.00025546,2]
[357923230,1744567838083,-500.0,0.00025546,2]
[357923231,1744567838092,-500.0,0.00025546,2]
[357923232,1744567838101,-500.0,0.00025546,2]
[357923233,1744567838111,-500.0,0.00025546,2]
[357923234,1744567838120,-500.0,0.00025546,2]
[357923236,1744567838130,-500.0,0.00025546,2]
[357923237,1744567838139,-500.0,0.00025546,2]
[357923238,1744567838149,-500.0,0.00025546,2]
[357923239,1744567838159,-500.0,0.00025546,2]
[357923240,1744567838168,-500.0,0.00025546,2]
[357923241,1744567838178,-435.82616835,0.00025546,2]
[357923242,1744567838195,-64.17383165,0.00025546,2]
[357923243,1744567838204,-207.0455914,0.00025546,2]
[357923244,1744567838214,-500.0,0.00025546,2]
[357923245,1744567838223,-500.0,0.00025546,2]
[357923246,1744567838233,-500.0,0.00025546,2]
[357923247,1744567838242,-500.0,0.00025546,2]
[357923248,1744567838252,-500.0,0.00025546,2]
[357923249,1744567838262,-591.75501106,0.00025546,2]
[357923250,1744567838272,-500.0,0.00025546,2]
[357923251,1744567838281,-500.0,0.00025546,2]
[357923252,1744567838292,-500.0,0.00025546,2]
[357923253,1744567838306,-500.0,0.00025546,2]
[357923254,1744567838315,-342.88547214,0.00025546,2]
[357923255,1744567838326,-500.0,0.00025546,2]
[357923256,1744567838336,-456.90105295,0.00025546,2]
[357923257,1744567838348,-500.0,0.00025546,2]
[357923258,1744567838358,-500.0,0.00025546,2]
[357923259,1744567838368,-500.0,0.00025546,2]
[357923260,1744567838379,-500.0,0.00025546,2]
[357923261,1744567838389,-500.0,0.00025546,2]
[357923262,1744567838399,-300.0,0.00025546,2]
[357923263,1744567838408,-300.0,0.00025546,2]
[357923264,1744567838418,-20519.0252759,0.00025547,2]
[357923265,1744567838428,-10000.0,0.00025964,2]
[357923266,1744567838437,-256.33728835,0.00026144,2]
[357923267,1744567838447,-152.0,0.0002652,2]
[357923268,1744567838456,-498.05175966,0.00026596,2]
[357923269,1744567838466,-50000.0,0.00026685,2]
[357923270,1744567838476,-13534.7247757,0.00026686,2]
[357923271,1744567838485,-11450.75226684,0.00026706,2]
[357923272,1744567838498,-11984.25196646,0.00026706,2]
[357923273,1744567838508,-500.0,0.00026727,2]
[357923274,1744567838517,-500.0,0.00026773,2]
[357923275,1744567838527,-1007.52259773,0.000269,7]
[357923276,1744567838536,-498.05175966,0.00026927,2]
[357923277,1744567838546,-537.59,0.00027,2]
[357923278,1744567838555,-1418.7724716,0.00027056,2]
[357923279,1744567838565,-192.0,0.00027116,2]
[357923280,1744567838576,-500.0,0.000272,2]
[357923281,1744567838586,-500.0,0.000272,2]
[357923282,1744567838596,-498.05175966,0.00027257,2]
[357923283,1744567838606,-500.0,0.00027276,2]
[357923284,1744567838616,-500.0,0.00027276,2]
[357923285,1744567838625,-1007.52259746,0.00027348,7]
[357923286,1744567838635,-500.0,0.00027397,2]
[357923287,1744567838644,-500.0,0.00027397,2]
[357923288,1744567838655,-500.0,0.00027397,2]
[357923289,1744567838664,-500.0,0.00027397,2]
[357923290,1744567838673,-500.0,0.00027397,5]
[357923291,1744567838683,-498.05175966,0.00027588,2]
[357923292,1744567838700,-420.0,0.00027659,2]
[357923293,1744567838710,-420.0,0.00027659,2]
[357923294,1744567838720,-500.0,0.00027767,5]
[357923295,1744567838730,-1007.52259746,0.00027797,7]
[357923296,1744567838739,-1000.0,0.00027824,3]
[357923297,1744567838749,-183.46079928,0.000279,2]
[357923298,1744567838759,-249.06827801,0.00027903,2]
[357923299,1744567838770,-498.05175966,0.00027918,2]
[357923300,1744567838780,-500.0,0.00027973,5]
[357923301,1744567838790,-500.0,0.00027973,5]
[357923302,1744567838799,-500.0,0.00027973,5]
[357923303,1744567838809,-500.0,0.00027973,5]
[357923304,1744567838820,-500.0,0.00027973,2]
[357923305,1744567838830,-500.0,0.00027973,5]
[357923306,1744567838839,-500.0,0.00027973,2]
[357923307,1744567838849,-500.0,0.00027973,5]
[357923308,1744567838859,-500.0,0.00027973,5]
[357923309,1744567838869,-500.0,0.00027973,5]
[357923310,1744567838879,-500.0,0.00027973,5]
[357923311,1744567838889,-500.0,0.00027973,5]
[357923312,1744567838899,-10862.17522064,0.0002798,2]
[357923313,1744567838911,-3273.91548045,0.0002798,2]
[357923314,1744567838923,-26468.08362601,0.0002798,2]
[357923315,1744567838933,-151.0,0.00027983,2]
[357923316,1744567838942,-207.4,0.00027983,2]
[357923317,1744567838952,-41479.78032399,0.0002799,2]
[357923358,1744567840286,-53263.29310591,0.0002799,2]
[357923360,1744567840298,-154365.10299236,0.00028,2]
[357923363,1744567840313,-3991.56896767,0.00028,2]
[357923365,1744567840325,-44598.7244403,0.00028,2]
[357923667,1744567846061,-115887.58393261,0.00028,2]
[357923668,1744567846071,-151.0,0.00028,7]
[357923669,1744567846081,-500.0,0.00028018,2]
[357923670,1744567846091,-628.05773197,0.00028068,2]
[357923671,1744567846100,-500.0,0.00028078,2]
[357923672,1744567846110,-500.0,0.00028085,2]
[357923673,1744567846119,-1007.52259746,0.00028245,7]
[357923674,1744567846129,-500.0,0.00028355,2]
[357923675,1744567846139,-500.0,0.00028359,2]
[357923676,1744567846150,-250.0,0.0002836,2]
[357923677,1744567846159,-193.12326162,0.0002836,30]
[357923678,1744567846169,-176.07914858,0.00028361,2]
[357923679,1744567846179,-1500.0,0.00028372,3]
[357923680,1744567846199,-40604.1743271,0.0002844,2]
[357923681,1744567846209,-151.0,0.0002845,7]
[357923682,1744567846219,-319.190579,0.0002845,7]
[357923683,1744567846229,-319.190579,0.0002845,7]
[357923684,1744567846239,-151.0,0.0002845,7]
[357923685,1744567846249,-151.0,0.0002845,2]
[357923686,1744567846259,-151.0,0.0002845,7]
[357923687,1744567846269,-151.0,0.0002845,7]
[357923688,1744567846279,-223.24556,0.0002845,2]
[357923689,1744567846288,-223.24556,0.0002845,2]
[357923690,1744567846302,-151.0,0.0002845,7]
[357923691,1744567846313,-151.0,0.0002845,7]
[357923692,1744567846323,-151.0,0.0002845,7]
[357923693,1744567846334,-151.0,0.0002845,7]
[357923694,1744567846344,-27069.4495514,0.00028451,2]
[357923695,1744567846355,-150373.18897035,0.00028461,2]
[357923696,1744567846368,-3232.06344795,0.00028461,2]
[357923697,1744567846380,-5960.53898249,0.00028461,2]
[357923698,1744567846394,-350.20199531,0.00028461,2]
[357923752,1744569032044,-250.0,0.00025446,2]
[357923753,1744569032054,-250.0,0.00025863,2]
[357923754,1744569032063,-168.2924173,0.00026373,2]
[357923755,1744569032074,-838.34317751,0.00026725,2]
[357923756,1744569032083,-968.3912136,0.00026883,2]
[357923757,1744569032093,-395.6054067,0.00027,2]
[357923758,1744569032104,-274.0445933,0.00027,2]
[357923759,1744569032114,-500.0,0.00027397,5]
[357923760,1744569032124,-956.90493411,0.000279,7]
[357923761,1744569032135,-500.0,0.00028086,2]
[357923762,1744569032144,-500.0,0.00028251,2]
[357923763,1744569032153,-300.0,0.00028277,2]
[357923764,1744569032163,-3805.8153464,0.00028278,2]
[357923765,1744569032173,-526.6764069,0.00028287,2]
[357923766,1744569032183,-314.49606013,0.00028287,2]
[357923768,1744569032195,-85.92204156,0.00028287,2]
[357923770,1744569032205,-500.0,0.00028287,2]
[357923772,1744569032214,-472.79961054,0.00028287,2]
[357923774,1744569032226,-153.09734032,0.00028287,2]
[357923776,1744569032235,-500.0,0.00028287,2]
[357923778,1744569032245,-217.27278331,0.00028287,2]
[357923780,1744569032255,-625.89695086,0.00028287,2]
[357923782,1744569032265,-500.0,0.00028287,2]
[357923784,1744569032274,-559.17550111,0.00028287,2]
[357923786,1744569032283,-500.0,0.00028287,2]
[357923788,1744569032294,-625.89695086,0.00028287,2]
[357923790,1744569032305,-500.0,0.00028287,2]
[357923791,1744569032315,-500.0,0.00028287,2]
[357923792,1744569032325,-500.0,0.00028287,2]
[357923793,1744569032334,-625.89695086,0.00028287,2]
[357923794,1744569032344,-500.0,0.00028287,2]
[357923795,1744569032355,-500.0,0.00028287,2]
[357923796,1744569032367,-625.89695086,0.00028287,2]
[357923797,1744569032377,-500.0,0.00028287,2]
[357923798,1744569032387,-625.89695086,0.00028287,2]
[357923799,1744569032397,-500.0,0.00028287,2]
[357923800,1744569032407,-625.89695086,0.00028287,2]
[357923801,1744569032417,-500.0,0.00028287,2]
[357923802,1744569032426,-373.08631086,0.00028287,2]
[357923803,1744569032436,-500.0,0.00028287,2]
[357923804,1744569032446,-625.89695086,0.00028287,2]
[357923805,1744569032464,-500.0,0.00028287,2]
[357923806,1744569032477,-500.0,0.00028287,2]
[357923807,1744569032487,-625.89695086,0.00028287,2]
[357923808,1744569032498,-500.0,0.00028287,2]
[357923809,1744569032508,-625.89695086,0.00028287,2]
[357923810,1744569032518,-500.0,0.00028287,2]
[357923811,1744569032528,-625.89695086,0.00028287,2]
[357923812,1744569032539,-641.48404133,0.00028287,2]
[357923813,1744569032550,-500.0,0.00028287,2]
[357923814,1744569032560,-625.89695086,0.00028287,2]
[357923815,1744569032571,-625.89695086,0.00028287,2]
[357923816,1744569032582,-500.0,0.00028287,2]
[357923817,1744569032592,-625.89695086,0.00028287,2]
[357923818,1744569032603,-625.89695086,0.00028287,2]
[357923819,1744569032613,-625.89695086,0.00028287,2]
[357923820,1744569032623,-625.89695086,0.00028287,2]
[357923821,1744569032633,-625.89695086,0.00028287,2]
[357923822,1744569032643,-625.89695086,0.00028287,2]
[357923823,1744569032653,-625.89695086,0.00028287,2]
[357923824,1744569032663,-625.89695086,0.00028287,2]
[357923825,1744569032673,-625.89695086,0.00028287,2]
[357923826,1744569032686,-625.89695086,0.00028287,2]
[357923827,1744569032696,-625.89695086,0.00028287,2]
[357923828,1744569032706,-625.89695086,0.00028287,2]
[357923829,1744569032716,-625.89695086,0.00028287,2]
[357923830,1744569032727,-625.89695086,0.00028287,2]
[357923831,1744569032737,-625.89695086,0.00028287,2]
[357923832,1744569032747,-625.89695086,0.00028287,2]
[357923833,1744569032758,-625.89695086,0.00028287,2]
[357923834,1744569032768,-625.89695086,0.00028287,2]
[357923835,1744569032778,-625.89695086,0.00028287,2]
[357923836,1744569032787,-625.89695086,0.00028287,2]
[357923837,1744569032798,-625.89695086,0.00028287,2]
[357923838,1744569032808,-625.89695086,0.00028287,2]
[357923839,1744569032818,-625.89695086,0.00028287,2]
[357923840,1744569032828,-625.89695086,0.00028287,2]
[357923841,1744569032838,-625.89695086,0.00028287,2]
[357923842,1744569032848,-625.89695086,0.00028287,2]
[357923843,1744569032858,-625.89695086,0.00028287,2]
[357923844,1744569032868,-625.89695086,0.00028287,2]
[357923845,1744569032879,-625.89695086,0.00028287,2]
[357923846,1744569032890,-625.89695086,0.00028287,2]
[357923847,1744569032900,-625.89695086,0.00028287,2]
[357923848,1744569032910,-625.89695086,0.00028287,2]
[357923849,1744569032920,-625.89695086,0.00028287,2]
[357923850,1744569032930,-625.89695086,0.00028287,2]
[357923851,1744569032940,-625.89695086,0.00028287,2]
[357923852,1744569032950,-625.89695086,0.00028287,2]
[357923853,1744569032960,-625.89695086,0.00028287,2]
[357923854,1744569032970,-625.89695086,0.00028287,2]
[357923855,1744569032980,-625.89695086,0.00028287,2]
[357923856,1744569032990,-1223.79512896,0.00028287,2]
[357923857,1744569032999,-1223.79512896,0.00028287,2]
[357923858,1744569033009,-1223.79512896,0.00028287,2]
[357923859,1744569033019,-500.0,0.00028287,2]
[357923860,1744569033029,-1223.79512896,0.00028287,2]
[357923861,1744569033039,-1223.79512896,0.00028287,2]
[357923862,1744569033049,-1223.79512896,0.00028287,2]
[357923863,1744569033059,-1223.79512896,0.00028287,2]
[357923864,1744569033070,-1223.79512896,0.00028287,2]
[357923865,1744569033080,-1223.79512896,0.00028287,2]
[357923866,1744569033095,-1223.79512896,0.00028287,2]
[357923867,1744569033106,-1223.79512896,0.00028287,2]
[357923868,1744569033116,-1223.79512896,0.00028287,2]
[357923869,1744569033126,-1223.79512896,0.00028287,2]
[357923870,1744569033138,-1223.79512896,0.00028287,2]
[357923871,1744569033148,-1223.79512896,0.00028287,2]
[357923872,1744569033158,-1223.79512896,0.00028287,2]
[357923873,1744569033168,-1223.79512896,0.00028287,2]
[357923874,1744569033178,-1223.79512896,0.00028287,2]
[357923875,1744569033188,-1223.79512896,0.00028287,2]
[357923876,1744569033198,-1223.79512896,0.00028287,2]
[357923877,1744569033210,-1223.79512896,0.00028287,2]
[357923878,1744569033220,-1223.79512896,0.00028287,2]
[357923879,1744569033231,-1223.79512896,0.00028287,2]
[357923880,1744569033242,-1223.79512896,0.00028287,2]
[357923881,1744569033253,-1223.79512896,0.00028287,2]
[357923882,1744569033264,-1223.79512896,0.00028287,2]
[357923883,1744569033275,-1223.79512896,0.00028287,2]
[357923884,1744569033286,-1223.79512896,0.00028287,2]
[357923885,1744569033297,-1223.79512896,0.00028287,2]
[357923886,1744569033309,-1223.79512896,0.00028287,2]
[357923887,1744569033320,-1223.79512896,0.00028287,2]
[357923888,1744569033331,-1223.79512896,0.00028287,2]
[357923889,1744569033343,-1223.79512896,0.00028287,2]
[357923890,1744569033355,-1223.79512897,0.00028287,2]
[357923891,1744569033366,-1223.79512897,0.00028287,2]
[357923892,1744569033378,-1223.79512897,0.00028287,2]
[357923893,1744569033392,-1223.79512897,0.00028287,2]
[357923894,1744569033405,-1133.08354153,0.00028287,2]
[357923942,1744569038324,-500.0,0.00028288,2]
[357923944,1744569038334,-500.0,0.00028288,2]
[357923946,1744569038343,-500.0,0.00028296,2]
[357923948,1744569038353,-6545.0,0.000283,10]
[357923950,1744569038366,-365.53143205,0.000283,10]
[357924009,1744569040431,-842.42856795,0.00028187,2]
[357924011,1744569040443,-457.5489343,0.00028187,2]
[357924013,1744569040453,-500.0,0.00028298,2]
[357924015,1744569040463,-3635.1186452,0.000283,10]
[357924017,1744569040473,-312.44791667,0.000283,10]
[357924019,1744569040483,-500.0,0.00028313,2]
[357924021,1744569040493,-500.0,0.00028313,2]
[357924022,1744569040503,-956.90493411,0.00028314,7]
[357924024,1744569040512,-3805.8153464,0.0002834,2]
[357924026,1744569040522,-151.0,0.00028342,2]
[357924028,1744569040532,-207.4,0.00028342,2]
[357924031,1744569040541,-5974.10793101,0.00028349,2]
[357924188,1744569046231,-1645.86932587,0.00028349,2]
[357924189,1744569046243,-1363.3573757,0.00028349,2]
[357924190,1744569046255,-685.98913599,0.00028349,2]
[357924191,1744569046267,-12524.4700968,0.00028349,2]
[357924192,1744569046290,-3825.60849432,0.00028349,2]
[357924193,1744569046347,-621.30506511,0.00028349,2]
[357924194,1744569046357,-1506.08945632,0.00028359,2]
[357924237,1744570232284,-166.61976,0.00025779,2]
[357924238,1744570232294,-167.75509615,0.00026149,2]
[357924239,1744570232305,-173.26853265,0.00026249,2]
[357924240,1744570232315,-160.0,0.0002657,2]
[357924241,1744570232325,-12536.72526453,0.0002657,2]
[357924242,1744570232335,-300.0,0.00026593,2]
[357924243,1744570232345,-300.0,0.0002664,2]
[357924244,1744570232354,-1682.88782993,0.00026767,2]
[357924245,1744570232364,-959.22814781,0.00026783,2]
[357924246,1744570232374,-291.86328828,0.000268,2]
[357924247,1744570232383,-151.0,0.00026854,2]
[357924248,1744570232392,-215.0738,0.00026854,2]
[357924249,1744570232402,-24901.7805827,0.00026868,2]
[357924250,1744570232412,-244.00194635,0.00026872,2]
[357924251,1744570232422,-184.35512181,0.00026873,2]
[357924252,1744570232432,-500.0,0.00026873,2]
[357924254,1744570232450,-500.0,0.00026873,2]
[357924255,1744570232461,-500.72858497,0.00026873,2]
[357924257,1744570232471,-500.0,0.00026873,2]
[357924259,1744570232485,-500.0,0.00026873,2]
[357924261,1744570232494,-185.3849883,0.00026873,2]
[357924262,1744570232504,-508.26830363,0.00026873,2]
[357924264,1744570232514,-500.0,0.00026873,2]
[357924266,1744570232523,-500.0,0.00026873,2]
[357924267,1744570232534,-500.0,0.00026873,2]
[357924269,1744570232543,-500.0,0.00026873,2]
[357924270,1744570232553,-893.11127201,0.000269,7]
[357924271,1744570232563,-3124.83901892,0.000269,2]
[357924272,1744570232573,-500.0,0.00026973,2]
[357924273,1744570232583,-196.07443055,0.00027,2]
[357924274,1744570232601,-406.60556945,0.00027,2]
[357924275,1744570232611,-183.56707784,0.00027297,2]
[357924276,1744570232623,-840.84856964,0.00027348,7]
[357924277,1744570232635,-52.26270219,0.00027348,7]
[357924278,1744570232645,-201.580136,0.00027397,2]
[357924279,1744570232655,-500.0,0.00027397,2]
[357924280,1744570232664,-500.0,0.00027397,2]
[357924281,1744570232674,-500.0,0.00027397,2]
[357924282,1744570232685,-500.0,0.00027397,5]
[357924283,1744570232698,-893.11127183,0.00027797,7]
[357924284,1744570232710,-500.0,0.00028019,2]
[357924285,1744570232720,-500.0,0.00028104,2]
[357924286,1744570232731,-500.0,0.00028174,2]
[357924287,1744570232742,-500.0,0.0002819,2]
[357924288,1744570232752,-500.0,0.00028199,2]
[357924289,1744570232762,-3378.14845606,0.00028229,2]
[357924290,1744570232772,-3378.14845606,0.00028239,2]
[357924291,1744570232782,-23647.0391924,0.0002824,2]
[357924292,1744570232792,-893.11127183,0.00028245,7]
[357924293,1744570232802,-17505.36216754,0.00028249,2]
[357924294,1744570232812,-250.0,0.0002825,2]
[357924295,1744570232822,-3990.97826588,0.0002825,2]
[357924322,1744570238445,-500.0,0.00026853,2]
[357924323,1744570238455,-500.0,0.00026853,2]
[357924324,1744570238465,-237.68274981,0.00026853,2]
[357924325,1744570238500,-262.31725019,0.00026853,2]
[357924326,1744570238510,-500.0,0.00026853,2]
[357924327,1744570238520,-500.0,0.00026853,2]
[357924328,1744570238530,-500.0,0.00026853,2]
[357924329,1744570238540,-505.91755011,0.00026853,2]
[357924330,1744570238550,-500.0,0.00026853,2]
[357924332,1744570238559,-500.0,0.00026853,2]
[357924333,1744570238569,-500.0,0.00026853,2]
[357924334,1744570238578,-500.0,0.00026853,2]
[357924335,1744570238588,-500.0,0.00026853,2]
[357924336,1744570238598,-500.0,0.00026853,2]
[357924337,1744570238607,-500.0,0.00026853,2]
[357924338,1744570238617,-500.0,0.00026853,2]
[357924339,1744570238626,-500.0,0.00026853,2]
[357924340,1744570238637,-500.0,0.00026853,2]
[357924341,1744570238646,-500.0,0.00026853,2]
[357924342,1744570238656,-500.0,0.00026853,2]
[357924343,1744570238666,-500.0,0.00026853,2]
[357924344,1744570238675,-500.0,0.00026853,2]
[357924345,1744570238685,-500.0,0.00026853,2]
[357924346,1744570238695,-500.0,0.00026853,2]
[357924347,1744570238705,-267.11256121,0.00026853,2]
[357924348,1744570238714,-500.0,0.00026853,2]
[357924349,1744570238724,-500.0,0.00026853,2]
[357924350,1744570238735,-500.0,0.00026853,2]
[357924351,1744570238745,-500.0,0.00026853,2]
[357924352,1744570238756,-500.0,0.00026853,2]
[357924353,1744570238766,-500.0,0.00026853,2]
[357924354,1744570238776,-500.0,0.00026853,2]
[357924355,1744570238786,-500.0,0.00026853,2]
[357924356,1744570238796,-500.0,0.00026853,2]
[357924357,1744570238806,-386.64013516,0.00026853,2]
[357924358,1744570238816,-500.0,0.00026853,2]
[357924359,1744570238826,-500.0,0.00026853,2]
[357924360,1744570238836,-500.0,0.00026853,2]
[357924361,1744570238846,-500.0,0.00026853,2]
[357924362,1744570238856,-500.0,0.00026853,2]
[357924363,1744570238866,-500.0,0.00026853,2]
[357924364,1744570238876,-500.0,0.00026853,2]
[357924365,1744570238886,-500.0,0.00026853,2]
[357924366,1744570238896,-500.0,0.00026853,2]
[357924367,1744570238906,-500.0,0.00026853,2]
[357924368,1744570238918,-500.0,0.00026853,2]
[357924369,1744570238928,-500.0,0.00026853,2]
[357924370,1744570238939,-500.0,0.00026853,2]
[357924371,1744570238949,-500.0,0.00026853,2]
[357924372,1744570238959,-500.0,0.00026853,2]
[357924373,1744570238970,-500.0,0.00026853,2]
[357924374,1744570238980,-500.0,0.00026853,2]
[357924375,1744570238991,-500.0,0.00026853,2]
[357924376,1744570239001,-500.0,0.00026853,2]
[357924377,1744570239011,-500.0,0.00026853,2]
[357924378,1744570239021,-500.0,0.00026853,2]
[357924379,1744570239031,-500.0,0.00026853,2]
[357924380,1744570239041,-29522.53400466,0.0002825,2]
[357924391,1744570243606,-388.84,0.0002825,2]
[357924392,1744570243619,-167981.6392464,0.0002825,2]
[357924558,1744570246591,-150471.89922375,0.0002825,2]
[357924698,1744571438623,-237.963802,0.00025358,2]
[357924700,1744571438633,-234.8226608,0.00025649,2]
[357924702,1744571438642,-215.41658559,0.00025671,2]
[357924803,1744571440727,-2179.6169066,0.00025671,2]
[357924804,1744571440739,-3045.19096192,0.00025671,2]
[357924805,1744571440788,-1375.19134699,0.00025671,2]
[357924806,1744571440798,-250.0,0.00025679,2]
[357924807,1744571440809,-537.9362353,0.0002578,2]
[357924808,1744571440820,-1020.21674835,0.0002615,2]
[357924809,1744571440830,-300.0,0.00026174,2]
[357924810,1744571440840,-300.0,0.00026175,2]
[357924811,1744571440850,-3009.28076932,0.00026177,2]
[357924812,1744571440860,-179.0240392,0.00026695,2]
[357924813,1744571440870,-151.0,0.00026774,2]
[357924814,1744571440879,-500.0,0.00026783,2]
[357924815,1744571440888,-500.0,0.00026783,2]
[357924816,1744571440898,-500.0,0.00026783,2]
[357924817,1744571440907,-500.0,0.00026783,2]
[357924818,1744571440916,-500.0,0.00026783,2]
[357924819,1744571440926,-500.0,0.00026783,2]
[357924820,1744571440936,-500.0,0.00026783,2]
[357924821,1744571440945,-500.0,0.00026783,2]
[357924822,1744571440956,-500.0,0.00026783,2]
[357924823,1744571440967,-500.0,0.00026783,2]
[357924824,1744571440976,-273.19736113,0.00026783,2]
[357924825,1744571440989,-127.39439388,0.00026783,2]
[357924826,1744571440998,-196.34584013,0.00026783,2]
[357924827,1744571441008,-492.24029726,0.00026783,2]
[357924828,1744571441018,-600.1734084,0.00026783,2]
[357924829,1744571441028,-500.0,0.00026783,2]
[357924830,1744571441038,-500.0,0.00026783,2]
[357924831,1744571441048,-500.0,0.00026783,2]
[357924832,1744571441059,-500.0,0.00026783,2]
[357924833,1744571441070,-500.0,0.00026783,2]
[357924834,1744571441080,-500.0,0.00026783,2]
[357924835,1744571441090,-500.0,0.00026783,2]
[357924836,1744571441100,-500.0,0.00026783,2]
[357924837,1744571441110,-500.0,0.00026783,2]
[357924838,1744571441120,-500.0,0.00026783,2]
[357924839,1744571441130,-500.0,0.00026783,2]
[357924840,1744571441142,-500.0,0.00026783,2]
[357924841,1744571441152,-500.0,0.00026783,2]
[357924842,1744571441163,-500.0,0.00026783,2]
[357924843,1744571441174,-500.0,0.00026783,2]
[357924844,1744571441185,-389.808583,0.00026783,2]
[357924888,1744571443578,-110.191417,0.00026783,2]
[357924891,1744571443588,-191.808583,0.00026783,2]
[357924893,1744571443603,-308.191417,0.00026783,2]
[357924895,1744571443612,-500.0,0.00026783,2]
[357924897,1744571443622,-500.0,0.00026783,2]
[357924899,1744571443633,-24900.0,0.0002679,2]
[357924901,1744571443642,-1472.52685118,0.000268,2]
[357924903,1744571443652,-774.02976919,0.000269,7]
[357924905,1744571443662,-500.0,0.00027,2]
[357924907,1744571443671,-309.88175905,0.00027,2]
[357924908,1744571443682,-542.41,0.000271,2]
[357924909,1744571443692,-774.02976891,0.00027348,7]
[357924910,1744571443701,-500.0,0.00027397,2]
[357924911,1744571443711,-500.0,0.00027397,2]
[357924912,1744571443721,-500.0,0.00027397,2]
[357924914,1744571443730,-500.0,0.00027397,2]
[357924916,1744571443740,-234.8713501,0.00027397,2]
[357924918,1744571443750,-279.21832204,0.00027397,2]
[357924920,1744571443760,-500.0,0.00027397,5]
[357924921,1744571443770,-202.29531727,0.00027404,2]
[357924922,1744571443780,-201.42847689,0.00027765,2]
[357924923,1744571443789,-774.02976891,0.00027797,7]
[357924924,1744571443799,-152.1931687,0.00027915,5]
[357924925,1744571443810,-312.44791667,0.00028,10]
[357924926,1744571443819,-500.0,0.00028053,2]
[357924927,1744571443830,-500.0,0.00028061,2]
[357924928,1744571443840,-500.0,0.00028082,2]
[357924929,1744571443849,-500.0,0.00028139,5]
[357924930,1744571443859,-500.0,0.00028139,5]
[357924931,1744571443869,-211.32016169,0.00028165,2]
[357924932,1744571443878,-500.0,0.00028224,2]
[357924933,1744571443888,-160.78,0.00028239,2]
[357924934,1744571443898,-774.02976891,0.00028245,7]
[357924935,1744571443908,-173.39969244,0.0002826,2]
[357924936,1744571443918,-420.0,0.00028321,2]
[357924937,1744571443928,-420.0,0.00028322,2]
[357924938,1744571443938,-486.92656654,0.00028349,2]
[357924939,1744571443947,-14428.57570306,0.0002835,2]
[357924958,1744571446572,-435.27750364,0.0002835,2]
[357924959,1744571446583,-14003.35792973,0.0002836,2]
[357924966,1744572522043,1370.6488476,0.00025,120]
[357925008,1744572632669,-300.0,0.00016999,2]